Department Family,Entity,Date of Payment,Expense Type,Expense Area,Supplier,Transaction Number,Amount in Sterling, Line Description
ECGD,ECGD,1 Nov 22,Legal Recoverable Expense,LD,White & Case LLP USD,        1023,"27,019.20",Legal Services (Recoverable)
ECGD,ECGD,1 Nov 22,Legal Recoverable Expense,LD,White & Case LLP USD,        1023,"27,019.21",Legal Services (Recoverable)
ECGD,ECGD,14 Nov 22,Legal Recoverable Expense,LD,White & Case London,        1025,"16,396.92",Legal Services (Recoverable)
ECGD,ECGD,14 Nov 22,Legal Recoverable Expense,LD,White & Case London,        1025,"16,396.92",Legal Services (Recoverable)
ECGD,ECGD,14 Nov 22,Legal Recoverable Expense,LD,White & Case London,        1025,"16,396.92",Legal Services (Recoverable)
ECGD,ECGD,14 Nov 22,Legal Recoverable Expense,LD,White & Case London,        1025,"16,396.92",Legal Services (Recoverable)
ECGD,ECGD,14 Nov 22,Legal Recoverable Expense,LD,White & Case London,        1025,"16,396.92",Legal Services (Recoverable)
ECGD,ECGD,21 Nov 22,Non-Legal Recoverable Expense,PMD,Aergo Capital Limited,        1029,"21,896.74",Technical Services (Recoverable)
ECGD,ECGD,21 Nov 22,Non-Legal Recoverable Expense,PMD,Aergo Capital Limited,        1029,"22,961.19",Technical Services (Recoverable)
ECGD,ECGD,24 Nov 22,Legal Recoverable Expense,LD,White & Case LLP USD,        1030,"81,846.05",Legal Services (Recoverable)
ECGD,ECGD,24 Nov 22,Legal Recoverable Expense,LD,White & Case LLP USD,        1030,"81,846.05",Legal Services (Recoverable)
ECGD,ECGD,30 Nov 22,Legal Recoverable Expense,LD,Allen & Overy,        1034,"191,516.39",Legal Services (Recoverable)
ECGD,ECGD,2 Nov 22,Overseas Export Managers,OCCMC,Foreign & Commonwealth Office,       83132,"144,890.53",Overseas Staff
ECGD,ECGD,2 Nov 22,IT Cloud and Hosting,ID,Bytes Software Services Ltd,       83136,"68,756.77",IT Systems
ECGD,ECGD,4 Nov 22,Marketing,OCCMC,Manning Gottlieb OMD,       83139,"121,921.24",Marketing & Communications
ECGD,ECGD,4 Nov 22,Overseas Export Managers,OCCMC,Foreign & Commonwealth Office,       83147,"79,288.20",Overseas Staff
ECGD,ECGD,4 Nov 22,Overseas Export Managers,OCCMC,Foreign & Commonwealth Office,       83148,"26,248.20",Overseas Staff
ECGD,ECGD,4 Nov 22,Marketing,OCCMC,Manning Gottlieb OMD,       83154,"52,943.38",Marketing & Communications
ECGD,ECGD,4 Nov 22,Marketing,OCCMC,Manning Gottlieb OMD,       83155,"34,880.20",Marketing & Communications
ECGD,ECGD,4 Nov 22,Marketing,OCCMC,Manning Gottlieb OMD,       83156,"72,777.88",Marketing & Communications
ECGD,ECGD,4 Nov 22,Marketing,OCCMC,Manning Gottlieb OMD,       83157,"33,267.48",Marketing & Communications
ECGD,ECGD,4 Nov 22,Agency - Interim Managers,HRD,Alexander Mann Solutions,       83164,"2,362.70",Interim Staff
ECGD,ECGD,4 Nov 22,Agency - Interim Managers,HRD,Alexander Mann Solutions,       83164,"2,488.05",Interim Staff
ECGD,ECGD,4 Nov 22,Agency - Interim Managers,HRD,Alexander Mann Solutions,       83164,"2,625.25",Interim Staff
ECGD,ECGD,4 Nov 22,Agency - Interim Managers,HRD,Alexander Mann Solutions,       83164,"3,408.70",Interim Staff
ECGD,ECGD,4 Nov 22,Agency - Specialist Contractors,HRD,Alexander Mann Solutions,       83164,"1,244.03",Interim Staff
ECGD,ECGD,4 Nov 22,Agency - Specialist Contractors,HRD,Alexander Mann Solutions,       83164,"2,361.08",Interim Staff
ECGD,ECGD,4 Nov 22,Agency - Specialist Contractors,HRD,Alexander Mann Solutions,       83164,"2,730.24",Interim Staff
ECGD,ECGD,4 Nov 22,Agency - Specialist Contractors,HRD,Alexander Mann Solutions,       83164,"2,951.35",Interim Staff
ECGD,ECGD,4 Nov 22,Agency - Specialist Contractors,HRD,Alexander Mann Solutions,       83164,"3,047.15",Interim Staff
ECGD,ECGD,4 Nov 22,Agency - Specialist Contractors,HRD,Alexander Mann Solutions,       83164,"3,097.80",Interim Staff
ECGD,ECGD,4 Nov 22,Agency - Specialist Contractors,HRD,Alexander Mann Solutions,       83164,"3,150.30",Interim Staff
ECGD,ECGD,4 Nov 22,Agency - Specialist Contractors,HRD,Alexander Mann Solutions,       83164,"3,336.30",Interim Staff
ECGD,ECGD,4 Nov 22,Agency - Specialist Contractors,HRD,Alexander Mann Solutions,       83164,"3,675.35",Interim Staff
ECGD,ECGD,4 Nov 22,Agency - Temporary Staff,HRD,Alexander Mann Solutions,       83164,534.52,Interim Staff
ECGD,ECGD,4 Nov 22,Agency - Temporary Staff,HRD,Alexander Mann Solutions,       83164,910.02,Interim Staff
ECGD,ECGD,14 Nov 22,Marketing,OCCMC,Manning Gottlieb OMD,       83179,"64,954.49",Marketing & Communications
ECGD,ECGD,14 Nov 22,Salaries & Wages,HRD,Cabinet Office,       83185,"34,523.14",UKEF Payroll costs
ECGD,ECGD,14 Nov 22,Overseas Export Managers,OCCMC,Green Park Interim & Executive Searc,       83187,"34,155.21",Overseas Staff
ECGD,ECGD,14 Nov 22,Agency - Interim Managers,HRD,Alexander Mann Solutions,       83203,"2,045.22",Interim Staff
ECGD,ECGD,14 Nov 22,Agency - Interim Managers,HRD,Alexander Mann Solutions,       83203,"2,488.05",Interim Staff
ECGD,ECGD,14 Nov 22,Agency - Interim Managers,HRD,Alexander Mann Solutions,       83203,"2,625.25",Interim Staff
ECGD,ECGD,14 Nov 22,Agency - Specialist Contractors,HRD,Alexander Mann Solutions,       83203,303.69,Interim Staff
ECGD,ECGD,14 Nov 22,Agency - Specialist Contractors,HRD,Alexander Mann Solutions,       83203,613.84,Interim Staff
ECGD,ECGD,14 Nov 22,Agency - Specialist Contractors,HRD,Alexander Mann Solutions,       83203,"1,218.86",Interim Staff
ECGD,ECGD,14 Nov 22,Agency - Specialist Contractors,HRD,Alexander Mann Solutions,       83203,"1,847.80",Interim Staff
ECGD,ECGD,14 Nov 22,Agency - Specialist Contractors,HRD,Alexander Mann Solutions,       83203,"1,950.44",Interim Staff
ECGD,ECGD,14 Nov 22,Agency - Specialist Contractors,HRD,Alexander Mann Solutions,       83203,"2,194.25",Interim Staff
ECGD,ECGD,14 Nov 22,Agency - Specialist Contractors,HRD,Alexander Mann Solutions,       83203,"2,438.05",Interim Staff
ECGD,ECGD,14 Nov 22,Agency - Specialist Contractors,HRD,Alexander Mann Solutions,       83203,"2,951.35",Interim Staff
ECGD,ECGD,14 Nov 22,Agency - Specialist Contractors,HRD,Alexander Mann Solutions,       83203,"3,053.99",Interim Staff
ECGD,ECGD,14 Nov 22,Agency - Specialist Contractors,HRD,Alexander Mann Solutions,       83203,"3,097.80",Interim Staff
ECGD,ECGD,14 Nov 22,Agency - Specialist Contractors,HRD,Alexander Mann Solutions,       83203,"3,150.30",Interim Staff
ECGD,ECGD,14 Nov 22,Agency - Specialist Contractors,HRD,Alexander Mann Solutions,       83203,"3,336.30",Interim Staff
ECGD,ECGD,14 Nov 22,Agency - Specialist Contractors,HRD,Alexander Mann Solutions,       83203,"3,412.80",Interim Staff
ECGD,ECGD,14 Nov 22,Agency - Specialist Contractors,HRD,Alexander Mann Solutions,       83203,"3,675.35",Interim Staff
ECGD,ECGD,14 Nov 22,Agency - Specialist Contractors,HRD,Alexander Mann Solutions,       83203,"4,146.75",Interim Staff
ECGD,ECGD,14 Nov 22,Agency - Specialist Contractors,HRD,Alexander Mann Solutions,       83203,"4,478.49",Interim Staff
ECGD,ECGD,14 Nov 22,Agency - Temporary Staff,HRD,Alexander Mann Solutions,       83203,512.98,Interim Staff
ECGD,ECGD,14 Nov 22,Agency - Temporary Staff,HRD,Alexander Mann Solutions,       83203,687.24,Interim Staff
ECGD,ECGD,14 Nov 22,Agency - Temporary Staff,HRD,Alexander Mann Solutions,       83203,710.28,Interim Staff
ECGD,ECGD,14 Nov 22,Agency - Temporary Staff,HRD,Alexander Mann Solutions,       83203,848.61,Interim Staff
ECGD,ECGD,14 Nov 22,Agency - Temporary Staff,HRD,Alexander Mann Solutions,       83203,866.17,Interim Staff
ECGD,ECGD,14 Nov 22,Project Agency - Specialist Cont,Change Board,Agile Solutions (GB) Ltd,       83209,"21,762.50",Project Professional Services
ECGD,ECGD,14 Nov 22,IT Software Licensing & Subscription,ID,Bytes Software Services Ltd,       83213,"22,056.21",Project Consultancy Services
ECGD,ECGD,14 Nov 22,Capital Computers,ID,Jigsaw Systems Ltd,       83214,"74,548.60",Project Consultancy Services
ECGD,ECGD,14 Nov 22,Assets Under Construction,ID,Cogsworx Limited,       83215,"44,075.00",Project Professional Services
ECGD,ECGD,16 Nov 22,Salaries & Wages,HRD,Cabinet Office,       83221,"28,150.00",UKEF Payroll costs
ECGD,ECGD,21 Nov 22,Project Consultancy Costs,Change Board,Price Waterhouse Coopers,       83235,"190,386.77",Project Consultancy Services
ECGD,ECGD,21 Nov 22,IT Software Licensing & Subscription,ID,Fidelity National Info Services,       83237,"24,241.66",IT Systems
ECGD,ECGD,21 Nov 22,IT Software Licensing & Subscription,ID,Fidelity National Info Services,       83237,"77,573.30",IT Systems
ECGD,ECGD,21 Nov 22,Agency - Interim Managers,HRD,Alexander Mann Solutions,       83241,"2,488.05",Interim Staff
ECGD,ECGD,21 Nov 22,Agency - Interim Managers,HRD,Alexander Mann Solutions,       83241,"2,669.04",Interim Staff
ECGD,ECGD,21 Nov 22,Agency - Interim Managers,HRD,Alexander Mann Solutions,       83241,"3,118.14",Interim Staff
ECGD,ECGD,21 Nov 22,Agency - Interim Managers,HRD,Alexander Mann Solutions,       83241,"3,336.30",Interim Staff
ECGD,ECGD,21 Nov 22,Agency - Interim Managers,HRD,Alexander Mann Solutions,       83241,"3,336.30",Interim Staff
ECGD,ECGD,21 Nov 22,Agency - Interim Managers,HRD,Alexander Mann Solutions,       83241,"3,408.70",Interim Staff
ECGD,ECGD,21 Nov 22,Agency - Interim Managers,HRD,Alexander Mann Solutions,       83241,"3,464.60",Interim Staff
ECGD,ECGD,21 Nov 22,Agency - Specialist Contractors,HRD,Alexander Mann Solutions,       83241,"1,847.79",Interim Staff
ECGD,ECGD,21 Nov 22,Agency - Specialist Contractors,HRD,Alexander Mann Solutions,       83241,"1,847.80",Interim Staff
ECGD,ECGD,21 Nov 22,Agency - Specialist Contractors,HRD,Alexander Mann Solutions,       83241,"1,847.80",Interim Staff
ECGD,ECGD,21 Nov 22,Agency - Specialist Contractors,HRD,Alexander Mann Solutions,       83241,"2,951.35",Interim Staff
ECGD,ECGD,21 Nov 22,Agency - Specialist Contractors,HRD,Alexander Mann Solutions,       83241,"3,047.15",Interim Staff
ECGD,ECGD,21 Nov 22,Agency - Specialist Contractors,HRD,Alexander Mann Solutions,       83241,"3,079.65",Interim Staff
ECGD,ECGD,21 Nov 22,Agency - Specialist Contractors,HRD,Alexander Mann Solutions,       83241,"3,097.80",Interim Staff
ECGD,ECGD,21 Nov 22,Agency - Specialist Contractors,HRD,Alexander Mann Solutions,       83241,"3,150.30",Interim Staff
ECGD,ECGD,21 Nov 22,Agency - Specialist Contractors,HRD,Alexander Mann Solutions,       83241,"3,336.30",Interim Staff
ECGD,ECGD,21 Nov 22,Agency - Specialist Contractors,HRD,Alexander Mann Solutions,       83241,"3,412.80",Interim Staff
ECGD,ECGD,21 Nov 22,Agency - Specialist Contractors,HRD,Alexander Mann Solutions,       83241,"3,675.35",Interim Staff
ECGD,ECGD,21 Nov 22,Agency - Specialist Contractors,HRD,Alexander Mann Solutions,       83241,"3,732.08",Interim Staff
ECGD,ECGD,21 Nov 22,Agency - Specialist Contractors,HRD,Alexander Mann Solutions,       83241,"4,976.10",Interim Staff
ECGD,ECGD,21 Nov 22,Agency - Temporary Staff,HRD,Alexander Mann Solutions,       83241,503.12,Interim Staff
ECGD,ECGD,21 Nov 22,Agency - Temporary Staff,HRD,Alexander Mann Solutions,       83241,710.28,Interim Staff
ECGD,ECGD,21 Nov 22,Agency - Temporary Staff,HRD,Alexander Mann Solutions,       83241,848.61,Interim Staff
ECGD,ECGD,21 Nov 22,Agency - Temporary Staff,HRD,Alexander Mann Solutions,       83241,866.17,Interim Staff
ECGD,ECGD,21 Nov 22,Online costs,Risk Approval Division,S&P Global Market Intelligence,       83243,"42,000.00",Corporate Risk Assesments
ECGD,ECGD,21 Nov 22,Online costs,Risk Approval Division,S&P Global Market Intelligence,       83244,"66,880.00",Corporate Risk Assesments
ECGD,ECGD,21 Nov 22,Consultancy,HRD,Efficio Limited,       83248,"85,367.50",Consultantcy
ECGD,ECGD,21 Nov 22,Marketing,OCCMC,Manning Gottlieb OMD,       83249,"73,992.83",Marketing & Communications
ECGD,ECGD,29 Nov 22,1HGR Rent and Charges,HRD,Government Property Agency,       83253,"2,286.60",Central Building Charges
ECGD,ECGD,29 Nov 22,1HGR Rent and Charges,HRD,Government Property Agency,       83253,"3,037.50",Central Building Charges
ECGD,ECGD,29 Nov 22,1HGR Rent and Charges,HRD,Government Property Agency,       83253,"5,898.75",Central Building Charges
ECGD,ECGD,29 Nov 22,1HGR Rent and Charges,HRD,Government Property Agency,       83253,"9,044.62",Central Building Charges
ECGD,ECGD,29 Nov 22,1HGR Rent and Charges,HRD,Government Property Agency,       83253,"70,319.25",Central Building Charges
ECGD,ECGD,29 Nov 22,1HGR Rent and Charges,HRD,Government Property Agency,       83253,"419,891.18",Central Building Charges
ECGD,ECGD,28 Nov 22,Agency - Interim Managers,HRD,Alexander Mann Solutions,       83268,472.54,Interim Staff
ECGD,ECGD,28 Nov 22,Agency - Interim Managers,HRD,Alexander Mann Solutions,       83268,"2,362.70",Interim Staff
ECGD,ECGD,28 Nov 22,Agency - Interim Managers,HRD,Alexander Mann Solutions,       83268,"2,362.70",Interim Staff
ECGD,ECGD,28 Nov 22,Agency - Interim Managers,HRD,Alexander Mann Solutions,       83268,"2,488.05",Interim Staff
ECGD,ECGD,28 Nov 22,Agency - Interim Managers,HRD,Alexander Mann Solutions,       83268,"2,625.25",Interim Staff
ECGD,ECGD,28 Nov 22,Agency - Interim Managers,HRD,Alexander Mann Solutions,       83268,"2,625.25",Interim Staff
ECGD,ECGD,28 Nov 22,Agency - Interim Managers,HRD,Alexander Mann Solutions,       83268,"3,336.30",Interim Staff
ECGD,ECGD,28 Nov 22,Agency - Interim Managers,HRD,Alexander Mann Solutions,       83268,"3,408.70",Interim Staff
ECGD,ECGD,28 Nov 22,Agency - Interim Managers,HRD,Alexander Mann Solutions,       83268,"3,464.60",Interim Staff
ECGD,ECGD,28 Nov 22,Agency - Specialist Contractors,HRD,Alexander Mann Solutions,       83268,"1,470.14",Interim Staff
ECGD,ECGD,28 Nov 22,Agency - Specialist Contractors,HRD,Alexander Mann Solutions,       83268,"1,492.85",Interim Staff
ECGD,ECGD,28 Nov 22,Agency - Specialist Contractors,HRD,Alexander Mann Solutions,       83268,"1,847.80",Interim Staff
ECGD,ECGD,28 Nov 22,Agency - Specialist Contractors,HRD,Alexander Mann Solutions,       83268,"2,438.05",Interim Staff
ECGD,ECGD,28 Nov 22,Agency - Specialist Contractors,HRD,Alexander Mann Solutions,       83268,"2,951.35",Interim Staff
ECGD,ECGD,28 Nov 22,Agency - Specialist Contractors,HRD,Alexander Mann Solutions,       83268,"3,047.15",Interim Staff
ECGD,ECGD,28 Nov 22,Agency - Specialist Contractors,HRD,Alexander Mann Solutions,       83268,"3,079.65",Interim Staff
ECGD,ECGD,28 Nov 22,Agency - Specialist Contractors,HRD,Alexander Mann Solutions,       83268,"3,079.65",Interim Staff
ECGD,ECGD,28 Nov 22,Agency - Specialist Contractors,HRD,Alexander Mann Solutions,       83268,"3,097.80",Interim Staff
ECGD,ECGD,28 Nov 22,Agency - Specialist Contractors,HRD,Alexander Mann Solutions,       83268,"3,150.30",Interim Staff
ECGD,ECGD,28 Nov 22,Agency - Specialist Contractors,HRD,Alexander Mann Solutions,       83268,"3,336.30",Interim Staff
ECGD,ECGD,28 Nov 22,Agency - Specialist Contractors,HRD,Alexander Mann Solutions,       83268,"3,412.80",Interim Staff
ECGD,ECGD,28 Nov 22,Agency - Specialist Contractors,HRD,Alexander Mann Solutions,       83268,"4,976.10",Interim Staff
ECGD,ECGD,28 Nov 22,Agency - Specialist Contractors,HRD,Alexander Mann Solutions,       83268,"4,976.10",Interim Staff
ECGD,ECGD,28 Nov 22,Agency - Temporary Staff,HRD,Alexander Mann Solutions,       83268,498.18,Interim Staff
ECGD,ECGD,28 Nov 22,Agency - Temporary Staff,HRD,Alexander Mann Solutions,       83268,710.28,Interim Staff
ECGD,ECGD,28 Nov 22,Agency - Temporary Staff,HRD,Alexander Mann Solutions,       83268,848.61,Interim Staff
ECGD,ECGD,28 Nov 22,Agency - Temporary Staff,HRD,Alexander Mann Solutions,       83268,866.17,Interim Staff
ECGD,ECGD,28 Nov 22,Change Board Projects,Change Board,Price Waterhouse Coopers,       83269,"26,143.44",Project Consultancy Services
ECGD,ECGD,28 Nov 22,Overseas Export Managers,OCCMC,Foreign & Commonwealth Office,       83272,"39,848.56",Overseas Staff
ECGD,ECGD,28 Nov 22,Overseas Export Managers,OCCMC,Foreign & Commonwealth Office,       83273,"74,952.29",Overseas Staff
